fUST/lending_fUST_20240704
["ID","MTS","AMOUNT","RATE_DAILY","PERIOD"]
[331076541,1720066243006,-500.0,0.00014843,2]
[331076542,1720066243015,-500.0,0.00014843,2]
[331076543,1720066243024,-500.0,0.00014843,2]
[331076544,1720066243032,-500.0,0.00014843,2]
[331076545,1720066243042,-500.0,0.00014843,2]
[331076546,1720066243051,-313.55799383,0.00014843,2]
[331076547,1720066243061,-509.50256274,0.00014843,2]
[331076548,1720066243071,-500.0,0.00014843,2]
[331076549,1720066243080,-500.0,0.00014843,2]
[331076550,1720066243090,-447.1217842,0.00014843,2]
[331076551,1720066243100,-500.0,0.00014843,2]
[331076552,1720066243110,-372.98791134,0.00014843,2]
[331076553,1720066243119,-681.51,0.00014843,2]
[331076554,1720066243129,-500.0,0.00014843,2]
[331076555,1720066243138,-500.0,0.00014843,2]
[331076556,1720066243147,-500.0,0.00014843,2]
[331076557,1720066243156,-500.0,0.00014843,2]
[331076559,1720066243165,-500.0,0.00014843,2]
[331076562,1720066243174,-770.25,0.00014843,2]
[331076563,1720066243183,-481.0386752,0.00014843,2]
[331076565,1720066243192,-545.82,0.00014843,2]
[331076568,1720066243201,-500.0,0.00014843,2]
[331076569,1720066243210,-500.0,0.00014843,2]
[331076571,1720066243220,-500.0,0.00014843,2]
[331076573,1720066243230,-500.0,0.00014843,2]
[331076576,1720066243239,-500.0,0.00014843,2]
[331076577,1720066243248,-500.0,0.00014843,2]
[331076579,1720066243258,-500.0,0.00014843,2]
[331076581,1720066243267,-500.0,0.00014843,2]
[331076583,1720066243276,-631.77,0.00014843,2]
[331076585,1720066243285,-500.0,0.00014843,2]
[331076587,1720066243294,-500.0,0.00014843,2]
[331076589,1720066243303,-500.0,0.00014843,2]
[331076591,1720066243313,-500.0,0.00014843,2]
[331076594,1720066243325,-500.0,0.00014843,2]
[331076597,1720066243334,-720.17,0.00014843,2]
[331076600,1720066243343,-500.0,0.00014843,2]
[331076603,1720066243352,-500.0,0.00014843,2]
[331076605,1720066243361,-1764.32,0.00014843,2]
[331076607,1720066243375,-500.0,0.00014843,2]
[331076609,1720066243385,-500.0,0.00014843,2]
[331076611,1720066243394,-510.99844591,0.00014843,2]
[331076613,1720066243404,-2011.52,0.00014843,2]
[331076615,1720066243413,-500.0,0.00014843,2]
[331076617,1720066243424,-1007.7,0.00014843,2]
[331076619,1720066243433,-500.0,0.00014843,2]
[331076621,1720066243442,-500.0,0.00014843,2]
[331076623,1720066243451,-704.76,0.00014843,2]
[331076625,1720066243460,-500.0,0.00014843,2]
[331076627,1720066243469,-500.0,0.00014843,2]
[331076629,1720066243479,-1441.08,0.00014843,2]
[331076631,1720066243487,-855.47,0.00014843,2]
[331076644,1720066243597,-497.1566344,0.00014843,2]
[331076646,1720066243610,-151.0,0.00014843,2]
[331076648,1720066243620,-647.17,0.00014843,2]
[331076650,1720066243630,-604.48788169,0.00014843,2]
[331076652,1720066243640,-500.0,0.00014843,2]
[331076654,1720066243651,-3608.51,0.00014843,2]
[331076656,1720066243661,-500.0,0.00014843,2]
[331076658,1720066243670,-500.0,0.00014843,2]
[331076660,1720066243679,-500.0,0.00014843,2]
[331076662,1720066243690,-500.0,0.00014843,2]
[331076664,1720066243699,-500.0,0.00014843,2]
[331076666,1720066243708,-500.0,0.00014843,2]
[331076668,1720066243718,-500.0,0.00014843,2]
[331076670,1720066243728,-500.0,0.00014843,2]
[331076672,1720066243737,-500.0,0.00014843,2]
[331076674,1720066243747,-500.0,0.00014843,2]
[331076676,1720066243756,-500.0,0.00014843,2]
[331076679,1720066243766,-500.0,0.00014843,2]
[331076680,1720066243775,-500.0,0.00014843,2]
[331076682,1720066243785,-500.0,0.00014843,2]
[331076685,1720066243794,-500.0,0.00014843,2]
[331076686,1720066243805,-1216.88,0.00014843,2]
[331076688,1720066243814,-500.0,0.00014843,2]
[331076690,1720066243827,-500.0,0.00014843,2]
[331076693,1720066243840,-500.0,0.00014843,2]
[331076695,1720066243851,-778.7,0.00014843,2]
[331076697,1720066243860,-179.415589,0.00014843,2]
[331076699,1720066243869,-3668.47,0.00014843,2]
[331076701,1720066243878,-500.0,0.00014843,2]
[331076703,1720066243887,-521.38,0.00014843,2]
[331076705,1720066243896,-2207.54,0.00014843,2]
[331076707,1720066243904,-500.0,0.00014843,2]
[331076709,1720066243913,-500.0,0.00014843,2]
[331076711,1720066243922,-500.0,0.00014843,2]
[331076713,1720066243931,-735.49,0.00014847,2]
[331076714,1720066243941,-500.0,0.00014847,2]
[331076716,1720066243951,-500.0,0.00014847,2]
[331076718,1720066243960,-500.0,0.00014847,2]
[331076720,1720066243970,-782.78,0.00014847,2]
[331076723,1720066243979,-500.0,0.00014847,2]
[331076724,1720066243988,-500.0,0.00014847,2]
[331076727,1720066243998,-576.42,0.00014847,2]
[331076729,1720066244007,-545.52357463,0.00014847,2]
[331076731,1720066244016,-500.0,0.00014847,2]
[331076732,1720066244025,-500.0,0.00014847,2]
[331076734,1720066244034,-500.0,0.00014848,2]
[331076737,1720066244043,-577.92,0.00014848,2]
[331076739,1720066244052,-199.22392977,0.00014848,2]
[331076741,1720066244061,-500.0,0.00014848,2]
[331076743,1720066244071,-475.65215327,0.00014848,2]
[331076745,1720066244080,-500.0,0.00014848,2]
[331076747,1720066244089,-500.0,0.00014848,2]
[331076749,1720066244099,-500.0,0.00014848,2]
[331076751,1720066244108,-573.59046043,0.00014848,2]
[331076753,1720066244117,-500.0,0.00014848,2]
[331076755,1720066244126,-500.0,0.00014848,2]
[331076756,1720066244135,-500.0,0.00014848,2]
[331076759,1720066244144,-500.0,0.00014848,2]
[331076760,1720066244153,-500.0,0.00014848,2]
[331076763,1720066244162,-500.0,0.00014848,2]
[331076764,1720066244171,-500.0,0.00014848,2]
[331076767,1720066244180,-500.0,0.00014848,2]
[331076769,1720066244189,-500.0,0.00014848,2]
[331076771,1720066244198,-500.0,0.00014848,2]
[331076773,1720066244207,-505.11145817,0.00014848,2]
[331076774,1720066244216,-545.72798756,0.00014848,2]
[331076776,1720066244225,-500.0,0.00014848,2]
[331076778,1720066244235,-500.0,0.00014848,2]
[331076781,1720066244244,-500.0,0.00014848,2]
[331076782,1720066244253,-151.0,0.00014848,2]
[331076785,1720066244263,-151.0,0.00014848,2]
[331076787,1720066244271,-151.0,0.00014848,2]
[331076789,1720066244281,-558.58851713,0.00014849,2]
[331076791,1720066244290,-500.0,0.00014849,2]
[331076793,1720066244299,-500.0,0.00014849,2]
[331076795,1720066244307,-8891.61,0.00014849,2]
[331076797,1720066244316,-500.0,0.00014853,2]
[331076799,1720066244327,-500.0,0.00014854,2]
[331076801,1720066244337,-500.0,0.00014854,2]
[331076803,1720066244346,-500.0,0.00014854,2]
[331076805,1720066244355,-500.0,0.00014854,2]
[331076807,1720066244364,-500.0,0.00014854,2]
[331076809,1720066244373,-500.0,0.00014854,2]
[331076810,1720066244382,-500.0,0.00014854,2]
[331076812,1720066244392,-577.31,0.00014854,2]
[331076815,1720066244401,-500.0,0.00014854,2]
[331076817,1720066244411,-203.35329202,0.00014854,2]
[331076819,1720066244419,-500.0,0.00014854,2]
[331076821,1720066244428,-684.73,0.00014854,2]
[331076823,1720066244438,-500.0,0.00014854,2]
[331076824,1720066244447,-504.09570641,0.00014854,2]
[331076826,1720066244456,-524.61291707,0.00014854,2]
[331076828,1720066244465,-729.62,0.00014854,2]
[331076830,1720066244474,-562.1,0.00014854,2]
[331076832,1720066244483,-757.94,0.00014854,2]
[331076834,1720066244493,-500.0,0.00014854,2]
[331076837,1720066244503,-500.0,0.00014854,2]
[331076838,1720066244512,-500.0,0.00014854,2]
[331076839,1720066244521,-500.0,0.00014854,2]
[331076841,1720066244530,-500.0,0.00014854,2]
[331076843,1720066244539,-500.0,0.00014854,2]
[331076845,1720066244549,-500.0,0.00014854,2]
[331076847,1720066244558,-151.0,0.00014854,2]
[331076849,1720066244567,-500.0,0.00014855,2]
[331076851,1720066244578,-500.0,0.00014855,2]
[331076853,1720066244588,-500.0,0.00014855,2]
[331076854,1720066244597,-2067.31,0.00014855,2]
[331076856,1720066244611,-5865.12,0.00014855,2]
[331076858,1720066244620,-1025.49,0.00014855,2]
[331076860,1720066244629,-2627.63,0.00014855,2]
[331076862,1720066244639,-210.17768559,0.00014855,2]
[331076864,1720066244650,-640.11,0.00014855,2]
[331076866,1720066244659,-964.57,0.00014855,2]
[331076868,1720066244668,-9299.38940399,0.00014998,2]
[331076870,1720066244678,-9614.54817379,0.00014998,2]
[331076871,1720066244688,-11131.49424568,0.00014998,2]
[331076872,1720066244698,-151.0,0.00014998,2]
[331076873,1720066244707,-13735.38805658,0.00014999,2]
[331076874,1720066244716,-4710.72024946,0.00014999,2]
[331076875,1720066244726,-1634.59229075,0.00014999,2]
[331076876,1720066244735,-1436.69334671,0.00014999,2]
[331076877,1720066244744,-1500.0,0.00014999,2]
[331076878,1720066244754,-3078.51196359,0.00014999,2]
[331076879,1720066244763,-3130.06017381,0.00014999,4]
[331076880,1720066244772,-1463.29635585,0.00014999,2]
[331076881,1720066244781,-1597.25650539,0.00014999,2]
[331076882,1720066244792,-3137.77932824,0.00014999,2]
[331076883,1720066244804,-789.77698638,0.00014999,2]
[331076884,1720066244814,-2118.3618334,0.00014999,2]
[331076885,1720066244823,-1752.27934002,0.00014999,2]
[331076886,1720066244832,-2126.43441341,0.00014999,2]
[331076887,1720066244843,-395.4705443,0.00015,2]
[331076888,1720066244852,-1104.60661146,0.00015,2]
[331076889,1720066244862,-948.84245203,0.00015,2]
[331076890,1720066244871,-2420.55776569,0.00015,2]
[331076891,1720066244881,-1039.06688618,0.00015,2]
[331076892,1720066244890,-2832.46914027,0.00015,2]
[331076893,1720066244900,-808.0087546,0.00015,2]
[331076894,1720066244909,-421.67213153,0.00015051,2]
[331076895,1720066244919,-5000.0,0.000151,2]
[331076896,1720066244928,-500.0,0.00015106,2]
[331076897,1720066244937,-1593.08,0.00015106,2]
[331076898,1720066244946,-10509.41,0.00015106,2]
[331076899,1720066244955,-1268.06,0.00015106,2]
[331076900,1720066244964,-2393.91,0.00015106,2]
[331076901,1720066244973,-640.92,0.00015106,2]
[331076902,1720066244982,-523.46,0.00015112,2]
[331076903,1720066244991,-500.0,0.00015112,2]
[331076904,1720066245001,-8925.03,0.00015112,2]
[331076905,1720066245010,-500.0,0.00015117,2]
[331076906,1720066245019,-957.95,0.00015117,2]
[331076907,1720066245028,-500.0,0.00015117,2]
[331076908,1720066245038,-500.0,0.00015117,2]
[331076909,1720066245047,-500.0,0.00015117,2]
[331076910,1720066245056,-500.0,0.00015117,2]
[331076911,1720066245065,-1406.69,0.00015117,2]
[331076912,1720066245075,-500.0,0.00015117,2]
[331076913,1720066245084,-500.0,0.00015117,2]
[331076914,1720066245093,-500.0,0.00015117,2]
[331076915,1720066245102,-801.08,0.00015117,2]
[331076916,1720066245111,-500.0,0.00015117,2]
[331076917,1720066245121,-1167.61,0.00015117,2]
[331076918,1720066245130,-500.0,0.00015117,2]
[331076919,1720066245139,-500.0,0.00015117,2]
[331076920,1720066245148,-709.23,0.00015117,2]
[331076921,1720066245157,-178.65620496,0.00015117,2]
[331076922,1720066245166,-390.46832177,0.00015117,2]
[331076923,1720066245175,-616.88,0.00015117,2]
[331076924,1720066245184,-500.0,0.00015117,2]
[331076925,1720066245194,-500.0,0.00015117,2]
[331076926,1720066245203,-500.0,0.00015117,2]
[331076927,1720066245212,-500.0,0.00015117,2]
[331076928,1720066245222,-500.0,0.00015117,2]
[331076929,1720066245231,-500.0,0.00015117,2]
[331076930,1720066245240,-500.0,0.00015117,2]
[331076931,1720066245249,-500.0,0.00015117,2]
[331076933,1720066245259,-500.0,0.00015117,2]
[331076935,1720066245268,-681.51,0.00015117,2]
[331076937,1720066245277,-500.0,0.00015117,2]
[331076938,1720066245287,-500.0,0.00015117,2]
[331076939,1720066245296,-500.0,0.00015117,2]
[331076940,1720066245306,-500.0,0.00015117,2]
[331076941,1720066245315,-502.78730563,0.00015117,2]
[331076942,1720066245325,-770.25,0.00015117,2]
[331076943,1720066245335,-545.82,0.00015117,2]
[331076944,1720066245344,-510.72346099,0.00015117,2]
[331076945,1720066245353,-500.0,0.00015117,2]
[331076946,1720066245363,-500.0,0.00015117,2]
[331076947,1720066245372,-500.0,0.00015117,2]
[331076949,1720066245381,-355.9646066,0.00015117,2]
[331076951,1720066245390,-500.0,0.00015117,2]
[331076953,1720066245400,-500.0,0.00015117,2]
[331076954,1720066245408,-500.0,0.00015117,2]
[331076956,1720066245417,-631.77,0.00015117,2]
[331076958,1720066245426,-500.0,0.00015117,2]
[331076960,1720066245435,-500.0,0.00015117,2]
[331076962,1720066245444,-500.0,0.00015117,2]
[331076963,1720066245454,-500.0,0.00015117,2]
[331076965,1720066245463,-500.0,0.00015117,2]
[331076967,1720066245473,-720.17,0.00015117,2]
[331076969,1720066245482,-500.0,0.00015117,2]
[331076971,1720066245491,-500.0,0.00015117,2]
[331076973,1720066245500,-1764.32,0.00015117,2]
[331076975,1720066245509,-500.0,0.00015117,2]
[331076977,1720066245518,-500.0,0.00015117,2]
[331076979,1720066245527,-2011.52,0.00015117,2]
[331076981,1720066245537,-500.0,0.00015117,2]
[331076983,1720066245546,-1007.7,0.00015117,2]
[331076985,1720066245555,-500.0,0.00015117,2]
[331076987,1720066245565,-704.76,0.00015117,2]
[331076989,1720066245574,-500.0,0.00015117,2]
[331076991,1720066245583,-500.0,0.00015117,2]
[331076993,1720066245592,-1441.08,0.00015117,2]
[331076995,1720066245604,-855.47,0.00015117,2]
[331076997,1720066245615,-151.7632,0.00015117,2]
[331076999,1720066245623,-647.17,0.00015117,2]
[331077001,1720066245632,-500.0,0.00015117,2]
[331077002,1720066245641,-3608.51,0.00015117,2]
[331077005,1720066245653,-500.0,0.00015117,2]
[331077006,1720066245663,-518.75977937,0.00015117,2]
[331077008,1720066245672,-500.0,0.00015117,2]
[331077010,1720066245681,-500.0,0.00015117,2]
[331077012,1720066245694,-500.0,0.00015117,2]
[331077014,1720066245704,-500.0,0.00015117,2]
[331077017,1720066245713,-500.0,0.00015117,2]
[331077018,1720066245722,-500.0,0.00015117,2]
[331077020,1720066245732,-282.88312774,0.00015117,2]
[331077022,1720066245741,-500.0,0.00015117,2]
[331077025,1720066245750,-500.0,0.00015117,2]
[331077028,1720066245760,-500.0,0.00015117,2]
[331077031,1720066245769,-500.0,0.00015117,2]
[331077034,1720066245778,-614.04872408,0.00015117,2]
[331077037,1720066245787,-500.0,0.00015117,2]
[331077039,1720066245796,-1216.88,0.00015117,2]
[331077042,1720066245806,-500.0,0.00015117,2]
[331077045,1720066245815,-500.0,0.00015117,2]
[331077047,1720066245824,-234.07913535,0.00015117,2]
[331077050,1720066245833,-778.7,0.00015117,2]
[331077067,1720066245923,-151.0,0.00015117,2]
[331077068,1720066245946,-151.0,0.00015117,2]
[331077069,1720066245957,-286.99682144,0.00015117,2]
[331077071,1720066245966,-3668.47,0.00015117,2]
[331077072,1720066245975,-500.0,0.00015117,2]
[331077074,1720066245984,-521.38,0.00015117,2]
[331077076,1720066245992,-2207.54,0.00015117,2]
[331077078,1720066246002,-500.0,0.00015117,2]
[331077080,1720066246011,-500.0,0.00015117,2]
[331077082,1720066246020,-151.0,0.00015117,2]
[331077084,1720066246029,-500.0,0.00015117,2]
[331077086,1720066246038,-735.49,0.00015121,2]
[331077089,1720066246048,-500.0,0.00015121,2]
[331077092,1720066246057,-500.0,0.00015121,2]
[331077095,1720066246066,-500.0,0.00015121,2]
[331077097,1720066246075,-500.0,0.00015121,2]
[331077099,1720066246085,-782.78,0.00015121,2]
[331077101,1720066246094,-500.0,0.00015121,2]
[331077103,1720066246103,-500.0,0.00015121,2]
[331077105,1720066246112,-576.42,0.00015121,2]
[331077107,1720066246122,-500.0,0.00015121,2]
[331077109,1720066246131,-500.0,0.00015121,2]
[331077111,1720066246140,-154.85288975,0.00015122,2]
[331077113,1720066246149,-500.0,0.00015122,2]
[331077115,1720066246158,-577.92,0.00015122,2]
[331077117,1720066246167,-500.0,0.00015122,2]
[331077118,1720066246176,-500.0,0.00015122,2]
[331077119,1720066246186,-500.0,0.00015122,2]
[331077120,1720066246196,-500.0,0.00015122,2]
[331077121,1720066246205,-561.68146604,0.00015122,2]
[331077122,1720066246214,-500.0,0.00015122,2]
[331077123,1720066246223,-500.0,0.00015122,2]
[331077124,1720066246231,-500.0,0.00015122,2]
[331077125,1720066246240,-500.0,0.00015122,2]
[331077126,1720066246249,-537.32435733,0.00015122,2]
[331077127,1720066246260,-500.0,0.00015122,2]
[331077128,1720066246270,-500.0,0.00015122,2]
[331077129,1720066246279,-500.0,0.00015122,2]
[331077130,1720066246288,-500.0,0.00015122,2]
[331077131,1720066246297,-342.61697353,0.00015122,2]
[331077132,1720066246307,-450.20035098,0.00015122,2]
[331077133,1720066246317,-500.0,0.00015122,2]
[331077134,1720066246326,-500.0,0.00015123,2]
[331077135,1720066246335,-500.0,0.00015123,2]
[331077136,1720066246347,-8891.61,0.00015123,2]
[331077137,1720066246356,-500.0,0.00015128,2]
[331077139,1720066246366,-500.0,0.00015128,2]
[331077141,1720066246375,-500.0,0.00015128,2]
[331077143,1720066246383,-500.0,0.00015128,2]
[331077145,1720066246392,-589.78587083,0.00015128,2]
[331077146,1720066246401,-500.0,0.00015128,2]
[331077148,1720066246411,-500.0,0.00015128,2]
[331077150,1720066246421,-577.31,0.00015128,2]
[331077152,1720066246430,-500.0,0.00015128,2]
[331077154,1720066246439,-500.0,0.00015128,2]
[331077156,1720066246448,-684.73,0.00015128,2]
[331077158,1720066246458,-500.0,0.00015128,2]
[331077160,1720066246467,-729.62,0.00015128,2]
[331077162,1720066246476,-562.1,0.00015128,2]
[331077164,1720066246486,-757.94,0.00015128,2]
[331077166,1720066246494,-500.0,0.00015128,2]
[331077168,1720066246503,-500.0,0.00015128,2]
[331077170,1720066246513,-500.0,0.00015128,2]
[331077172,1720066246522,-500.0,0.00015128,2]
[331077174,1720066246531,-500.0,0.00015128,2]
[331077176,1720066246540,-500.0,0.00015128,2]
[331077178,1720066246550,-500.0,0.00015128,2]
[331077180,1720066246559,-500.0,0.00015129,2]
[331077182,1720066246568,-500.0,0.00015129,2]
[331077184,1720066246577,-500.0,0.00015129,2]
[331077186,1720066246586,-2067.31,0.00015129,2]
[331077187,1720066246597,-5865.12,0.00015129,2]
[331077189,1720066246609,-1025.49,0.00015129,2]
[331077191,1720066246619,-2627.63,0.00015129,2]
[331077193,1720066246628,-640.11,0.00015129,2]
[331077195,1720066246637,-151.0,0.00015129,2]
[331077197,1720066246648,-151.0,0.00015129,2]
[331077199,1720066246657,-151.0,0.00015129,2]
[331077201,1720066246666,-964.57,0.00015129,2]
[331077203,1720066246675,-606.66280089,0.00015224,2]
[331077205,1720066246687,-500.0,0.00015262,2]
[331077208,1720066246696,-500.0,0.0001538,2]
[331077210,1720066246706,-1593.08,0.0001538,2]
[331077212,1720066246715,-10509.41,0.0001538,2]
[331077214,1720066246724,-1268.06,0.0001538,2]
[331077216,1720066246733,-2393.91,0.0001538,2]
[331077218,1720066246742,-640.92,0.0001538,2]
[331077220,1720066246751,-523.46,0.00015386,2]
[331077222,1720066246760,-500.0,0.00015386,2]
[331077224,1720066246769,-8925.03,0.00015386,2]
[331077226,1720066246778,-500.0,0.00015391,2]
[331077228,1720066246788,-957.95,0.00015391,2]
[331077230,1720066246798,-500.0,0.00015391,2]
[331077232,1720066246808,-500.0,0.00015391,2]
[331077234,1720066246817,-500.0,0.00015391,2]
[331077236,1720066246828,-500.0,0.00015391,2]
[331077238,1720066246837,-1406.69,0.00015391,2]
[331077239,1720066246846,-500.0,0.00015391,2]
[331077241,1720066246855,-500.0,0.00015391,2]
[331077243,1720066246864,-500.0,0.00015391,2]
[331077245,1720066246873,-801.08,0.00015391,2]
[331077247,1720066246882,-469.70322727,0.00015391,2]
[331077249,1720066246891,-1167.61,0.00015391,2]
[331077251,1720066246900,-500.0,0.00015391,2]
[331077253,1720066246910,-500.0,0.00015391,2]
[331077256,1720066246919,-709.23,0.00015391,2]
[331077258,1720066246928,-616.88,0.00015391,2]
[331077260,1720066246937,-500.0,0.00015391,2]
[331077262,1720066246946,-500.0,0.00015391,2]
[331077264,1720066246955,-500.0,0.00015391,2]
[331077266,1720066246964,-500.0,0.00015391,2]
[331077268,1720066246973,-500.0,0.00015391,2]
[331077270,1720066246982,-500.0,0.00015391,2]
[331077271,1720066246991,-500.0,0.00015391,2]
[331077273,1720066247000,-500.0,0.00015391,2]
[331077275,1720066247009,-500.0,0.00015391,2]
[331077278,1720066247019,-681.51,0.00015391,2]
[331077279,1720066247027,-500.0,0.00015391,2]
[331077281,1720066247036,-500.0,0.00015391,2]
[331077284,1720066247045,-500.0,0.00015391,2]
[331077286,1720066247055,-500.0,0.00015391,2]
[331077288,1720066247064,-770.25,0.00015391,2]
[331077290,1720066247074,-545.82,0.00015391,2]
[331077292,1720066247083,-356.35727033,0.00015391,2]
[331077293,1720066247092,-500.0,0.00015391,2]
[331077296,1720066247101,-500.0,0.00015391,2]
[331077297,1720066247110,-500.0,0.00015391,2]
[331077299,1720066247119,-500.0,0.00015391,2]
[331077301,1720066247128,-490.73431038,0.00015391,2]
[331077302,1720066247137,-631.77,0.00015391,2]
[331077303,1720066247146,-500.0,0.00015391,2]
[331077304,1720066247155,-500.0,0.00015391,2]
[331077305,1720066247164,-500.0,0.00015391,2]
[331077306,1720066247173,-500.0,0.00015391,2]
[331077307,1720066247182,-500.0,0.00015391,2]
[331077308,1720066247191,-720.17,0.00015391,2]
[331077309,1720066247200,-500.0,0.00015391,2]
[331077310,1720066247209,-500.0,0.00015391,2]
[331077311,1720066247218,-1764.32,0.00015391,2]
[331077312,1720066247227,-500.0,0.00015391,2]
[331077313,1720066247236,-500.0,0.00015391,2]
[331077314,1720066247245,-2011.52,0.00015391,2]
[331077315,1720066247254,-397.6592249,0.00015391,2]
[331077316,1720066247263,-1007.7,0.00015391,2]
[331077317,1720066247271,-500.0,0.00015391,2]
[331077319,1720066247280,-704.76,0.00015391,2]
[331077321,1720066247289,-510.33142613,0.00015391,2]
[331077323,1720066247299,-500.0,0.00015391,2]
[331077325,1720066247308,-1441.08,0.00015391,2]
[331077327,1720066247317,-855.47,0.00015391,2]
[331077329,1720066247326,-647.17,0.00015391,2]
[331077331,1720066247335,-500.0,0.00015391,2]
[331077333,1720066247344,-3608.51,0.00015391,2]
[331077335,1720066247353,-500.0,0.00015391,2]
[331077337,1720066247362,-500.0,0.00015391,2]
[331077339,1720066247371,-500.0,0.00015391,2]
[331077341,1720066247380,-500.0,0.00015391,2]
[331077342,1720066247390,-500.0,0.00015391,2]
[331077344,1720066247399,-500.0,0.00015391,2]
[331077346,1720066247409,-500.0,0.00015391,2]
[331077348,1720066247418,-500.0,0.00015391,2]
[331077350,1720066247427,-500.0,0.00015391,2]
[331077352,1720066247436,-500.0,0.00015391,2]
[331077354,1720066247446,-500.0,0.00015391,2]
[331077355,1720066247455,-500.0,0.00015391,2]
[331077358,1720066247465,-1216.88,0.00015391,2]
[331077359,1720066247475,-500.0,0.00015391,2]
[331077361,1720066247483,-193.98649616,0.00015391,2]
[331077363,1720066247493,-778.7,0.00015391,2]
[331077365,1720066247501,-3668.47,0.00015391,2]
[331077367,1720066247510,-500.0,0.00015391,2]
[331077369,1720066247519,-521.38,0.00015391,2]
[331077371,1720066247528,-2207.54,0.00015391,2]
[331077373,1720066247537,-500.0,0.00015391,2]
[331077375,1720066247547,-566.91614325,0.00015391,2]
[331077377,1720066247556,-500.0,0.00015391,2]
[331077379,1720066247566,-735.49,0.00015395,2]
[331077381,1720066247575,-500.0,0.00015395,2]
[331077383,1720066247585,-500.0,0.00015395,2]
[331077385,1720066247594,-500.0,0.00015395,2]
[331077386,1720066247605,-782.78,0.00015395,2]
[331077388,1720066247616,-500.0,0.00015395,2]
[331077390,1720066247625,-500.0,0.00015395,2]
[331077392,1720066247634,-576.42,0.00015395,2]
[331077394,1720066247644,-500.0,0.00015395,2]
[331077396,1720066247653,-500.0,0.00015395,2]
[331077398,1720066247662,-500.0,0.00015396,2]
[331077400,1720066247672,-577.92,0.00015396,2]
[331077402,1720066247681,-500.0,0.00015396,2]
[331077404,1720066247695,-500.0,0.00015396,2]
[331077406,1720066247705,-500.0,0.00015396,2]
[331077408,1720066247714,-500.0,0.00015396,2]
[331077410,1720066247723,-500.0,0.00015396,2]
[331077412,1720066247732,-500.0,0.00015396,2]
[331077414,1720066247742,-500.0,0.00015396,2]
[331077416,1720066247751,-500.0,0.00015396,2]
[331077418,1720066247760,-500.0,0.00015396,2]
[331077420,1720066247770,-500.0,0.00015396,2]
[331077422,1720066247779,-500.0,0.00015396,2]
[331077424,1720066247789,-500.0,0.00015396,2]
[331077426,1720066247798,-559.70959437,0.00015396,2]
[331077427,1720066247808,-500.0,0.00015397,2]
[331077429,1720066247817,-518.79065479,0.00015397,2]
[331077432,1720066247828,-8891.61,0.00015397,2]
[331077434,1720066247837,-500.0,0.00015402,2]
[331077436,1720066247846,-500.0,0.00015402,2]
[331077438,1720066247855,-500.0,0.00015402,2]
[331077440,1720066247863,-500.0,0.00015402,2]
[331077442,1720066247872,-500.0,0.00015402,2]
[331077444,1720066247882,-500.0,0.00015402,2]